bitfinex/quotes_SOLUSD_20240814
["timestamp","ask_amount","ask_price","bid_price","bid_amount"]
[1723600440537,6.9281,144.34,144.27,6.4698]
[1723600440840,65.12549,144.37,144.27,6.4698]
[1723600441056,7.22313845,144.38,144.29,15.9325]
[1723600441246,6.9262,144.38,144.3,0.37647]
[1723600441447,6.9261,144.39,144.31,6.64059]
[1723600441767,6.9261,144.39,144.32,45.25098]
[1723600441955,6.9261,144.39,144.33,15.9325]
[1723600442135,60.64466888,144.44,144.34,0.37647]
[1723600442136,6.9247,144.41,144.34,0.37647]
[1723600442338,7.22228888,144.43,144.34,45.25098]
[1723600442544,32.28,144.43,144.33,15.9325]
[1723600442842,6.9247,144.41,144.34,0.25098]
[1723600443033,6.9253,144.4,144.35,6.6512]
[1723600443439,34.01119442,144.43,144.35,6.6512]
[1723600443440,32.28,144.43,144.35,6.6512]
[1723600443742,6.9243,144.42,144.35,6.6512]
[1723600444875,7.21920032,144.46,144.37,0.12549]
[1723600445181,40.34,144.53,144.39,6.6512]
[1723600445342,47.55589947,144.53,144.43,6.9236]
[1723600445535,47.55589947,144.53,144.4,0.25098]
[1723600445736,47.55589947,144.53,144.43,6.9233]
[1723600446083,6.9209,144.49,144.44,15.6969]
[1723600446237,6.9209,144.49,144.44,22.6199]
[1723600446434,7.21589947,144.53,144.45,1.28645402]
[1723600446660,6.9198,144.52,144.47,6.9218]
[1723600447071,6.9185,144.54,144.49,6.9208]
[1723600447281,7.217271,144.56,144.46,6.1734]
[1723600447695,40.34,144.57,144.46,6.1734]
[1723600447985,47.55854624,144.57,144.46,6.1734]
[1723600448349,45.12549,144.56,144.46,6.1734]
[1723600448775,6.9185,144.54,144.46,6.1734]
[1723600449655,6.9185,144.54,144.48,6.9212]
[1723600450076,6.9191,144.53,144.48,6.9212]
[1723600450751,6.9196,144.52,144.46,13.0953]
[1723600450985,40.34,144.57,144.46,13.0953]
[1723600450986,6.92,144.51,144.46,13.0953]
[1723600451674,6.9195,144.52,144.47,6.9218]
[1723600452284,6.9195,144.52,144.48,6.9213]
[1723600452479,40.34,144.55,144.46,6.1734]
[1723600452688,6.9218,144.47,144.46,6.1734]
[1723600452983,40.34,144.51,144.46,6.1734]
[1723600453187,6.9208,144.5,144.46,6.1734]
[1723600453374,6.9209,144.49,144.46,6.1734]
[1723600453757,6.9205,144.5,144.46,6.1734]
[1723600454673,0.12549,144.52,144.46,6.1734]
[1723600454873,6.9218,144.48,144.46,6.1734]
[1723600455795,6.9208,144.5,144.46,6.1734]
[1723600457069,6.9208,144.5,144.46,13.0956]
[1723600457475,6.9199,144.51,144.46,13.0956]
[1723600457978,6.919,144.53,144.48,6.9212]
[1723600458164,26.9185,144.54,144.49,1.28563349]
[1723600458620,6.9185,144.54,144.49,1.28563349]
[1723600458886,6.9191,144.53,144.48,6.9212]
[1723600460870,6.9186,144.54,144.49,6.9208]
[1723600461201,6.919,144.53,144.48,6.9212]
[1723600464302,6.919,144.53,144.48,6.9213]
[1723600464797,6.9194,144.52,144.48,6.9213]
[1723600465012,6.9194,144.52,144.47,6.9217]
[1723600465175,6.9204,144.5,144.46,13.0957]
[1723600465370,6.9199,144.51,144.46,13.0956]
[1723600465712,6.9205,144.5,144.46,6.1734]
[1723600466903,32.35549,144.54,144.46,13.0956]
[1723600467082,6.9197,144.52,144.47,6.9218]
[1723600467479,6.9199,144.51,144.46,13.0956]
[1723600467700,6.9204,144.5,144.46,6.1734]
[1723600467918,17.2981,144.53,144.46,6.1734]
[1723600468075,6.9205,144.5,144.46,6.1734]
[1723600468581,6.92,144.51,144.46,13.0956]
[1723600468782,6.92,144.51,144.47,6.9218]
[1723600469004,6.9193,144.53,144.48,6.9211]
[1723600469207,6.9194,144.52,144.47,6.9217]
[1723600469389,6.9194,144.52,144.48,6.9213]
[1723600469990,6.919,144.53,144.48,6.9213]
[1723600470403,6.9194,144.52,144.47,6.9217]
[1723600474103,6.9199,144.51,144.46,13.0956]
[1723600474296,7.21563439,144.54,144.46,13.0956]
[1723600474607,20.0,144.53,144.46,13.0956]
[1723600475409,6.9204,144.5,144.46,6.1734]
[1723600475575,0.12549,144.52,144.46,6.1734]
[1723600475777,6.9218,144.47,144.44,15.6969]
[1723600475982,6.9223,144.46,144.44,15.6969]
[1723600476595,6.9219,144.47,144.44,15.6969]
[1723600477210,6.9214,144.48,144.44,15.6969]
[1723600478516,0.12549,144.51,144.46,6.9218]
[1723600478809,6.9204,144.5,144.47,1.286423]
[1723600478996,6.9209,144.49,144.47,1.286423]
[1723600479197,6.9204,144.5,144.47,1.286423]
[1723600479709,6.9204,144.5,144.46,1.28643025]
[1723600481716,6.9209,144.49,144.46,1.28643025]
[1723600481916,6.9209,144.49,144.44,22.62]
[1723600483311,6.9213,144.48,144.44,22.62]
[1723600484213,6.9203,144.51,144.46,6.9219]
[1723600485309,6.9205,144.5,144.45,6.9226]
[1723600487016,6.9205,144.5,144.46,6.9221]
[1723600487321,6.9199,144.52,144.47,6.9214]
[1723600487925,6.9199,144.51,144.47,6.9214]
[1723600491511,6.9193,144.53,144.48,1.28567754]
[1723600491702,6.9193,144.53,144.49,1.28528049]
[1723600492604,6.9193,144.53,144.46,1.28529322]
[1723600492824,6.9193,144.53,144.49,6.9207]
[1723600493007,6.9193,144.53,144.5,1.28528904]
[1723600495027,6.9193,144.53,144.49,1.28529559]
[1723600495930,6.9183,144.55,144.52,6.4424]
[1723600496144,6.918,144.55,144.52,6.4424]
[1723600497733,6.9176,144.56,144.52,6.4424]
[1723600500747,14.12930888,144.6,144.53,1.28423971]
[1723600500916,32.23,144.61,144.55,6.9177]
[1723600501111,32.23,144.61,144.52,6.4424]
[1723600501343,6.9172,144.57,144.52,13.3615]
[1723600502054,6.9172,144.57,144.53,6.9188]
[1723600502344,6.9166,144.58,144.53,6.9188]
[1723600506546,6.9165,144.59,144.55,6.9179]
[1723600506747,6.9165,144.59,144.56,1.28280139]
[1723600507046,17.2859,144.63,144.57,16.1547]
[1723600507047,6.9147,144.62,144.57,16.1547]
[1723600507252,6.9156,144.6,144.57,16.1547]
[1723600507458,6.4156,144.6,144.57,16.1547]
[1723600508069,6.9152,144.61,144.57,16.1547]
[1723600508358,0.8182302,144.64,144.57,16.1547]
[1723600508539,0.8182302,144.64,144.58,6.1557]
[1723600509146,7.7319302,144.64,144.59,6.9156]
[1723600509537,7.7319302,144.64,144.6,0.4885696]
[1723600509751,0.8182302,144.64,144.6,7.4039696]
[1723600510070,0.8182302,144.64,144.61,8.19693895]
[1723600510361,0.8182302,144.64,144.63,23.0688]
[1723600510534,0.8182302,144.64,144.63,30.50586198]
[1723600511864,0.8182302,144.64,144.63,29.2245]
[1723600512238,0.8182302,144.64,144.63,22.3104]
[1723600512464,0.8182302,144.64,144.54,15.6148]
[1723600512644,32.9682302,144.64,144.54,15.6148]
[1723600513157,0.8182302,144.64,144.54,15.6148]
[1723600513571,0.8182302,144.64,144.59,6.9158]
[1723600514356,0.8182302,144.64,144.61,22.5298]
[1723600514660,0.8182302,144.64,144.63,6.9141]
[1723600514837,0.8182302,144.64,144.62,8.19641285]
[1723600515251,0.8182302,144.64,144.62,6.9145]
[1723600515464,0.8182302,144.64,144.63,8.19554594]
[1723600516052,0.8182302,144.64,144.63,8.19496032]
[1723600517371,0.8182302,144.64,144.63,6.9141]
[1723600518245,0.8182302,144.64,144.62,6.9142]
[1723600518473,0.8182302,144.64,144.61,15.6148]
[1723600519848,0.8182302,144.64,144.63,6.9141]
[1723600524283,0.8182302,144.64,144.63,53.57103119]
[1723600525162,0.8182302,144.64,144.63,52.03959]
[1723600525363,0.8182302,144.64,144.63,6.9141]
[1723600529766,0.8182302,144.64,144.63,8.19491164]
[1723600531558,0.8182302,144.64,144.63,6.9141]
[1723600531957,0.8182302,144.64,144.63,20.02508]
[1723600532679,0.8182302,144.64,144.63,20.15057]
[1723600533272,0.8182302,144.64,144.63,6.9141]
[1723600533706,0.8182302,144.64,144.63,7.03959]
[1723600533986,0.8182302,144.64,144.63,7.16508]
[1723600535590,0.8182302,144.64,144.63,20.02508]
[1723600535790,0.8182302,144.64,144.63,66.55623603]
[1723600536886,26.9095,144.73,144.64,0.12549]
[1723600537061,6.9095,144.73,144.64,46.7816458]
[1723600537262,6.9099,144.72,144.68,6.9117]
[1723600539505,6.9099,144.72,144.69,1.27977238]
[1723600539708,6.9099,144.72,144.67,6.9121]
[1723600541574,12.86,144.75,144.68,8.19140684]
[1723600541575,6.9094,144.73,144.68,8.19140684]
[1723600541790,6.9094,144.73,144.69,6.9112]
[1723600542109,32.76457769,144.77,144.7,1.27952865]
[1723600542306,20.0,144.76,144.71,1.27921476]
[1723600542801,6.909,144.74,144.71,1.27921476]
[1723600543874,6.909,144.74,144.69,6.9112]
[1723600544599,12.86,144.75,144.68,15.4476]
[1723600545282,6.9102,144.72,144.68,15.4476]
[1723600546402,12.86,144.73,144.66,6.1565]
[1723600546597,12.86,144.69,144.64,23.2304]
[1723600547199,19.7714,144.69,144.65,6.9132]
[1723600547578,12.86,144.71,144.65,6.9132]
[1723600548183,6.9108,144.7,144.66,6.9126]
[1723600548399,19.7705,144.71,144.66,6.9126]
[1723600549112,6.9099,144.72,144.67,6.912]
[1723600549289,19.7694,144.73,144.68,6.9116]
[1723600549490,26.91,144.72,144.68,6.9116]
[1723600549718,6.9104,144.71,144.67,6.9121]
[1723600550007,26.91,144.72,144.67,6.9121]
[1723600550197,19.03020736,144.76,144.68,1.27964383]
[1723600550407,19.03020736,144.76,144.67,6.4554]
[1723600551397,20.0,144.75,144.67,6.4554]
[1723600551597,12.86,144.74,144.67,13.3672]
[1723600551798,20.0,144.75,144.67,6.4554]
[1723600551799,12.86,144.72,144.67,6.4554]
[1723600551997,12.86,144.72,144.66,6.9126]
[1723600551998,12.86,144.72,144.64,22.4444]
[1723600552210,6.9109,144.7,144.64,22.4444]
[1723600552805,6.9104,144.71,144.64,22.4444]
[1723600553903,6.9104,144.71,144.67,6.9121]
[1723600554928,6.91,144.72,144.67,6.9121]
[1723600555808,20.0,144.75,144.65,0.12549]
[1723600556001,0.12549,144.74,144.68,6.9114]
[1723600556259,6.9097,144.73,144.68,6.9114]
[1723600556429,6.91,144.72,144.67,6.9121]
[1723600557815,6.9104,144.71,144.67,6.9121]
[1723600558211,6.91,144.72,144.67,6.9121]
[1723600559629,6.91,144.72,144.68,6.9117]
[1723600559825,6.9094,144.73,144.68,6.9117]
[1723600559999,6.9094,144.73,144.69,6.9112]
[1723600561521,33.86765396,144.72,144.64,22.4444]
[1723600562035,6.9109,144.7,144.64,22.4444]
[1723600562931,6.9109,144.7,144.66,6.9127]
[1723600563304,6.9109,144.7,144.55,456.44]
[1723600563305,6.9126,144.67,144.62,6.9145]
[1723600563698,6.9126,144.67,144.6,21.7889]
[1723600563699,0.12549,144.66,144.6,21.7889]
[1723600563932,6.9133,144.65,144.6,28.7044]
[1723600564134,8.64226278,144.64,144.6,28.7044]
[1723600564314,33.86856278,144.64,144.56,22.5594]
[1723600564501,6.916,144.6,144.56,22.5594]
[1723600564703,8.64528284,144.59,144.54,6.9184]
[1723600565006,0.12549,144.63,144.52,54.6994]
[1723600565308,26.9142,144.63,144.58,6.9161]
[1723600566109,20.0,144.63,144.54,32.14]
[1723600566308,0.12549,144.67,144.56,32.14]
[1723600566516,20.25098,144.67,144.58,21.4106]
[1723600566729,20.25098,144.67,144.59,1.28228377]
[1723600567423,6.9132,144.65,144.6,6.9152]
[1723600568629,27.03819,144.67,144.61,6.9151]
[1723600568840,26.9127,144.67,144.59,0.12549]
[1723600569017,26.9127,144.67,144.59,45.50196]
[1723600569636,26.9127,144.67,144.62,6.9145]
[1723600569847,20.0,144.67,144.59,45.37647]
[1723600570014,0.12549,144.68,144.59,0.12549]
[1723600570210,20.12549,144.68,144.59,0.12549]
[1723600570410,6.9133,144.65,144.61,6.9151]
[1723600570830,6.9133,144.65,144.6,6.9155]
[1723600571039,6.9128,144.66,144.59,0.12549]
[1723600571256,6.9128,144.66,144.61,6.9151]
[1723600572224,6.9132,144.65,144.61,6.9151]
[1723600572435,6.9132,144.65,144.6,6.9155]
[1723600575354,32.14,144.67,144.58,21.4106]
[1723600575559,6.9143,144.63,144.58,28.3268]
[1723600576051,32.14,144.67,144.6,6.9155]
[1723600576255,6.9133,144.65,144.6,6.9155]
[1723600579133,6.9142,144.63,144.58,21.4106]
[1723600579334,6.9138,144.64,144.59,0.47020441]
[1723600579535,6.9138,144.64,144.58,21.4106]
[1723600580031,32.14,144.67,144.61,6.9151]
[1723600580236,6.9128,144.66,144.61,6.9151]
[1723600580648,6.9128,144.66,144.62,6.9145]
[1723600582461,6.9124,144.67,144.63,6.9141]
[1723600582863,6.9124,144.67,144.62,6.9146]
[1723600583444,6.9128,144.66,144.62,6.9146]
[1723600585957,20.0,144.68,144.6,6.9155]
[1723600585958,6.9138,144.64,144.6,6.9155]
[1723600586160,6.9142,144.63,144.59,6.9161]
[1723600586662,6.9142,144.63,144.58,28.327]
[1723600587232,6.9137,144.64,144.59,6.9159]
[1723600587438,6.9137,144.64,144.6,6.9155]
[1723600592073,6.9133,144.65,144.6,6.9155]
[1723600593807,6.9133,144.65,144.61,6.9151]
[1723600594650,7.03829,144.66,144.61,6.9151]
[1723600595160,39.0524,144.67,144.62,6.9146]
[1723600595358,6.9129,144.66,144.62,6.9146]
[1723600595562,8.64139327,144.66,144.62,6.9146]
[1723600596069,6.9129,144.66,144.61,6.915]
[1723600596270,8.6413957,144.66,144.61,6.915]
[1723600596470,6.9129,144.66,144.61,6.915]
[1723600598677,1.72849615,144.65,144.59,6.916]
[1723600598889,1.72868241,144.64,144.58,21.4106]
[1723600599059,12.87,144.63,144.58,15.1377]
[1723600599378,19.7852,144.61,144.56,6.917]
[1723600599578,0.12549,144.65,144.55,6.1457]
[1723600599579,12.87,144.63,144.55,6.1457]
[1723600599763,12.99549,144.65,144.55,6.1457]
[1723600599971,1.72879865,144.64,144.59,6.9156]
[1723600600178,6.9146,144.63,144.55,6.1457]
[1723600600371,1.72888421,144.62,144.58,6.9165]
[1723600600682,6.9146,144.63,144.59,6.9159]
[1723600601181,1.72879612,144.62,144.58,6.9165]
[1723600601487,6.9146,144.63,144.58,6.9165]
[1723600603264,6.9146,144.63,144.59,6.9159]
[1723600603687,6.9138,144.64,144.59,6.9159]
[1723600604482,6.9142,144.63,144.59,6.9159]
[1723600604674,6.9142,144.63,144.58,6.9164]
[1723600608870,6.9142,144.63,144.55,6.1457]
[1723600608871,6.9152,144.61,144.55,6.1457]
[1723600609076,8.64420982,144.61,144.55,6.1457]
[1723600609791,8.64420982,144.61,144.57,6.9169]
[1723600610379,6.9152,144.61,144.57,6.9169]
[1723600611791,6.9152,144.61,144.56,6.9174]
[1723600615211,6.9152,144.61,144.57,6.9168]
[1723600615902,6.9147,144.62,144.57,6.9168]
[1723600616390,6.9142,144.63,144.58,6.9163]
[1723600618841,6.9148,144.62,144.57,6.9169]
[1723600619401,1.72892753,144.61,144.55,6.1457]
[1723600619710,6.9161,144.59,144.55,13.0636]
[1723600619893,6.9157,144.6,144.55,13.0636]
[1723600620293,1.72911575,144.6,144.51,6.5583]
[1723600620491,12.87,144.59,144.51,6.5583]
[1723600620708,1.72954583,144.58,144.51,6.5583]
[1723600620898,1.72960769,144.57,144.51,6.5583]
[1723600621219,8.64720189,144.56,144.51,13.4782]
[1723600621886,6.9177,144.56,144.52,6.9194]
[1723600622090,6.9177,144.56,144.51,13.4781]
[1723600622315,6.917,144.57,144.52,6.9194]
[1723600622510,6.917,144.57,144.53,6.9189]
[1723600623925,6.9175,144.56,144.51,13.4781]
[1723600624491,7.04249,144.58,144.52,6.9193]
[1723600624919,6.9171,144.57,144.52,6.9193]
[1723600626605,6.9166,144.58,144.53,6.9189]
[1723600626803,0.12549,144.6,144.51,19.4283]
[1723600627016,45.37647,144.6,144.51,19.4283]
[1723600627197,6.9165,144.59,144.54,6.9184]
[1723600628426,6.9167,144.58,144.53,6.9189]
[1723600629935,1.72959539,144.57,144.51,6.5583]
[1723600630128,6.9177,144.56,144.51,6.5583]
[1723600630430,6.9175,144.56,144.52,6.919]
[1723600630805,6.9171,144.57,144.52,6.919]
[1723600631741,1.72965008,144.56,144.52,6.919]
[1723600632227,8.64725008,144.56,144.52,6.919]
[1723600632703,6.9176,144.56,144.52,6.919]
[1723600633629,6.9171,144.57,144.52,6.919]
[1723600633822,19.7866,144.58,144.53,6.9189]
[1723600634022,6.9166,144.58,144.53,6.9189]
[1723600634908,1.7295943,144.57,144.51,13.4778]
[1723600635840,1.7295943,144.57,144.5,15.7143]
[1723600635841,6.9185,144.54,144.5,15.7143]
[1723600636713,6.9195,144.52,144.47,13.1101]
[1723600637029,0.12549,144.53,144.47,6.1887]
[1723600637913,7.04449,144.53,144.48,6.9213]
[1723600641237,6.9194,144.52,144.48,6.9213]
[1723600641437,6.9194,144.52,144.41,51.48]
[1723600641438,6.9224,144.46,144.43,6.0488]
[1723600641657,1.73063951,144.49,144.43,6.0488]
[1723600641947,14.60083672,144.48,144.42,23.5814]
[1723600642322,6.9223,144.46,144.42,16.6572]
[1723600642727,1.73094813,144.45,144.42,16.6572]
[1723600642929,1.73094813,144.45,144.39,6.0488]
[1723600643129,6.9237,144.44,144.4,6.9251]
[1723600643442,0.12549,144.45,144.4,6.9251]
[1723600643741,6.9224,144.46,144.41,6.9246]
[1723600644219,8.65392769,144.45,144.4,6.9251]
[1723600644539,6.9229,144.45,144.4,6.9251]
[1723600644743,12.87,144.48,144.41,1.28827411]
[1723600644948,7.04669,144.49,144.43,6.9233]
[1723600645245,6.9212,144.49,144.44,6.9231]
[1723600645719,6.9213,144.48,144.44,6.9231]
[1723600646310,6.9213,144.48,144.43,6.9237]
[1723600647742,6.9213,144.48,144.44,6.9232]
[1723600648348,12.87,144.5,144.42,12.87]
[1723600648349,1.7306582,144.5,144.45,6.9226]
[1723600648520,6.9208,144.5,144.45,6.9226]
[1723600649420,6.921,144.49,144.43,6.9233]
[1723600650046,8.65083282,144.5,144.43,16.6572]
[1723600650259,6.9204,144.5,144.43,16.6572]
[1723600651134,6.9204,144.5,144.45,6.9224]
[1723600653073,8.65143587,144.49,144.44,6.9231]
[1723600653250,6.921,144.49,144.44,6.9231]
[1723600654157,6.921,144.49,144.45,6.9227]
[1723600654543,6.9204,144.5,144.45,6.9227]
[1723600654739,0.12549,144.52,144.47,6.9218]
[1723600655429,6.9199,144.51,144.46,6.9223]
[1723600657364,6.9205,144.5,144.46,6.9223]
[1723600658072,6.9209,144.49,144.44,12.87]
[1723600658255,1.73045358,144.48,144.43,16.6572]
[1723600658574,1.73054542,144.5,144.43,16.6572]
[1723600658943,6.9212,144.49,144.43,16.6572]
[1723600659174,6.9205,144.5,144.43,16.6572]
[1723600659866,6.9205,144.5,144.45,6.9225]
[1723600661473,8.65135481,144.49,144.44,19.7931]
[1723600661778,6.9209,144.49,144.44,19.7931]
[1723600661960,6.9215,144.48,144.44,12.87]
[1723600662163,6.9219,144.47,144.43,23.5805]
[1723600662740,6.9219,144.47,144.34,71.48]
[1723600662741,12.87,144.45,144.36,15.244]
[1723600663046,6.9229,144.45,144.4,6.9251]
[1723600663894,6.9233,144.44,144.4,6.9251]
[1723600664064,6.9237,144.43,144.38,6.926]
[1723600664376,0.12549,144.46,144.37,19.7966]
[1723600664377,8.6553237,144.42,144.37,19.7966]
[1723600664685,6.9242,144.42,144.38,6.926]
[1723600664857,6.9236,144.44,144.39,6.9253]
[1723600665254,7.22448937,144.48,144.36,15.244]
[1723600665463,6.9231,144.45,144.4,6.9247]
[1723600665784,6.9223,144.46,144.41,6.9246]
[1723600667396,12.87,144.49,144.37,0.12549]
[1723600667397,0.12549,144.47,144.37,0.12549]
[1723600667684,6.9222,144.47,144.42,6.924]
[1723600667983,12.87,144.49,144.42,6.924]
[1723600667984,6.9224,144.46,144.42,6.924]
[1723600668586,6.9224,144.46,144.41,8.2123021]
[1723600669261,6.9229,144.45,144.41,6.9246]
[1723600669462,0.12549,144.48,144.38,12.87]
[1723600669787,6.9238,144.43,144.38,12.87]
[1723600670288,6.9233,144.44,144.39,6.9255]
[1723600671156,6.9233,144.44,144.4,1.28827146]
[1723600671881,6.9233,144.44,144.39,6.9255]
[1723600672051,6.9238,144.43,144.38,19.796]
[1723600672385,0.12549,144.46,144.37,0.12549]
[1723600672386,6.9242,144.42,144.37,6.9265]
[1723600672579,12.87,144.45,144.36,28.114]
[1723600672580,6.9247,144.41,144.36,28.114]
[1723600672882,6.9242,144.42,144.36,28.114]
[1723600673894,6.9242,144.42,144.38,6.926]
[1723600677893,0.12549,144.46,144.39,6.9256]
[1723600678177,6.9233,144.44,144.39,6.9256]
[1723600678772,6.9224,144.46,144.39,12.87]
[1723600679092,6.9224,144.46,144.38,0.12549]
[1723600679093,6.9214,144.48,144.43,6.9237]
[1723600679287,6.9214,144.48,144.44,1.28719164]
[1723600679660,6.9218,144.47,144.44,1.28719164]
[1723600680361,6.9218,144.47,144.42,23.3694]
[1723600680991,6.9218,144.47,144.43,1.28647866]
[1723600681199,17.303,144.49,144.42,16.4453]
[1723600681565,6.9224,144.46,144.42,16.4453]
[1723600682085,6.9218,144.47,144.42,23.3694]
[1723600682284,37.20277351,144.52,144.42,16.4453]
[1723600682486,6.9209,144.49,144.44,6.9231]
[1723600682671,6.9214,144.48,144.43,6.9237]
[1723600682865,23.5142,144.52,144.43,6.9237]
[1723600682866,6.9218,144.47,144.43,6.9237]
[1723600683177,6.9225,144.46,144.42,16.4453]
[1723600684887,6.9225,144.46,144.42,23.3694]
[1723600685095,6.9219,144.47,144.42,23.3694]
[1723600686794,6.9231,144.45,144.42,16.4453]
[1723600686978,1.73055525,144.46,144.42,16.4453]
[1723600686979,6.9224,144.46,144.42,16.4453]
[1723600688483,6.9228,144.45,144.42,16.4453]
[1723600690724,32.24,144.49,144.41,12.9504]
[1723600690725,6.9237,144.43,144.41,6.0262]
[1723600691019,6.9237,144.43,144.39,23.5723]
[1723600691486,6.9237,144.43,144.39,16.647]
[1723600691819,6.9239,144.43,144.39,16.647]
[1723600692390,6.9239,144.43,144.38,13.1718]
[1723600692589,8.65553574,144.42,144.38,6.2458]
[1723600692793,1.73130602,144.41,144.36,16.647]
[1723600693104,6.9247,144.41,144.36,23.5738]
[1723600693822,6.9258,144.39,144.36,16.647]
[1723600694127,6.9252,144.4,144.36,16.647]
[1723600694307,6.9257,144.39,144.35,6.9275]
[1723600694616,17.43679,144.42,144.34,6.2458]
[1723600694796,6.9266,144.37,144.34,6.2458]
[1723600695006,19.17102082,144.4,144.32,15.6085]
[1723600695187,6.9272,144.36,144.32,15.6085]
[1723600695385,6.9267,144.37,144.32,22.5374]
[1723600695605,8.65900297,144.36,144.32,15.6085]
[1723600695808,6.9267,144.37,144.32,15.6085]
[1723600696016,6.9262,144.38,144.33,6.9285]
[1723600696185,6.9257,144.39,144.34,8.21810049]
[1723600696391,6.9261,144.38,144.33,6.9285]
[1723600697697,8.6584779,144.37,144.32,22.5375]
[1723600697895,6.9266,144.37,144.32,22.5375]
[1723600698420,0.12549,144.4,144.32,15.6085]
[1723600698598,20.12549,144.4,144.32,15.6085]
[1723600698799,6.9264,144.38,144.33,6.9281]
[1723600699511,32.24,144.43,144.34,1.29011021]
[1723600699693,6.9251,144.41,144.36,6.9268]
[1723600699901,6.9252,144.4,144.35,6.9275]
[1723600700219,6.9258,144.39,144.34,12.91]
[1723600700627,6.9258,144.39,144.34,19.8378]
[1723600701900,6.9258,144.39,144.34,6.9278]
[1723600703025,7.21614335,144.45,144.37,0.12549]
[1723600703209,38.9447,144.5,144.38,32.28]
[1723600703534,6.922,144.47,144.41,6.9246]
[1723600704037,6.922,144.47,144.42,1.28764946]
[1723600704531,6.922,144.47,144.42,8.21154946]
[1723600704828,6.9223,144.46,144.41,12.9377]
[1723600705626,0.12549,144.49,144.41,6.0131]
[1723600705935,0.12549,144.48,144.41,6.0131]
[1723600706123,6.9229,144.45,144.41,6.0131]
[1723600706314,6.9233,144.44,144.41,6.0131]
[1723600706832,6.9233,144.44,144.4,16.4938]
[1723600707325,6.9233,144.44,144.4,23.4189]
[1723600707550,0.12549,144.46,144.42,6.9239]
[1723600707700,7.04789,144.46,144.41,6.9246]
[1723600708232,6.9229,144.45,144.4,16.4938]
[1723600709634,6.9223,144.46,144.4,16.4938]
[1723600709938,6.9219,144.47,144.42,6.9242]
[1723600710095,23.70282852,144.51,144.43,1.2876616]
[1723600710300,6.9207,144.5,144.45,6.9226]
[1723600710631,6.921,144.49,144.44,6.9232]
[1723600710813,6.9214,144.48,144.43,12.9798]
[1723600711944,6.9218,144.47,144.43,6.0562]
[1723600712229,32.28,144.49,144.43,6.0562]
[1723600712409,0.12549,144.48,144.4,23.4189]
[1723600712933,6.9228,144.45,144.4,24.7069406]
[1723600713095,6.9228,144.45,144.41,6.9247]
[1723600713295,6.9228,144.45,144.4,16.4938]
[1723600713529,6.9236,144.44,144.4,16.4938]
[1723600713731,32.28,144.47,144.4,16.4938]
[1723600713907,17.67997,144.48,144.4,16.4938]
[1723600713908,17.67997,144.48,144.41,1.2884543]
[1723600714102,17.67997,144.48,144.4,16.4938]
[1723600714809,6.9224,144.46,144.41,6.9246]
[1723600715907,17.67997,144.48,144.4,16.4938]
[1723600716106,6.9234,144.44,144.4,16.4938]
[1723600716444,6.9243,144.42,144.4,16.4938]
[1723600716737,6.9247,144.41,144.39,6.0562]
[1723600717031,1.85690667,144.44,144.36,22.6036]
[1723600717205,6.9248,144.41,144.36,22.6039]
[1723600717405,6.9248,144.41,144.37,6.9266]
[1723600717611,6.9242,144.42,144.37,6.9266]
[1723600718237,7.04879,144.44,144.37,1.28922741]
[1723600718443,6.9237,144.43,144.37,1.28922741]
[1723600718655,6.9242,144.42,144.38,6.9261]
[1723600719127,6.9242,144.42,144.36,15.6769]
[1723600719541,6.9239,144.43,144.36,15.6769]